bitfinex/quotes_SOLUSD_20250815
["timestamp","ask_amount","ask_price","bid_price","bid_amount"]
[1755264902313,39.72,193.15,193.11,0.69]
[1755264902514,0.68,193.14,193.05,5.18000518]
[1755264902825,0.68,193.14,193.04,0.03]
[1755264902826,26.0,193.05,193.04,0.03]
[1755264903129,89.89153551,193.05,193.04,0.03]
[1755264903290,65.72,193.05,193.04,0.03]
[1755264903619,89.89153551,193.05,193.04,0.03]
[1755264903922,15.10621557,193.11,193.04,0.72]
[1755264904129,39.84,193.1,193.04,0.72]
[1755264904289,5.17705529,193.16,193.04,0.72]
[1755264904492,24.17153551,193.12,193.04,0.72]
[1755264904692,64.05153551,193.11,193.05,24.17153551]
[1755264904915,64.05153551,193.11,193.04,0.72]
[1755264905120,5.17705529,193.16,193.1,24.17153551]
[1755264905417,39.86,193.15,193.11,24.17153551]
[1755264905613,24.17153551,193.19,193.13,24.17153551]
[1755264905811,24.17153551,193.16,193.05,12.94936245]
[1755264905994,15.10621557,193.11,193.04,0.03]
[1755264906196,24.17153551,193.05,193.04,0.03]
[1755264906488,64.09153551,193.05,193.04,0.03]
[1755264906891,39.92,193.05,193.04,0.03]
[1755264907115,64.09153551,193.05,193.04,0.03]
[1755264907694,39.92,193.05,193.04,0.03]
[1755264907901,64.09153551,193.05,193.04,0.03]
[1755264908118,31.17839573,193.11,193.04,0.03]
[1755264908313,24.17153551,193.05,193.04,0.03]
[1755264908501,67.46937643,193.05,193.04,0.03]
[1755264908824,24.17153551,193.07,193.04,0.03]
[1755264909027,39.94,193.05,193.04,0.03]
[1755264909526,64.11153551,193.05,193.04,0.03]
[1755264909901,39.94,193.05,193.04,0.03]
[1755264910329,39.94,193.05,193.04,0.72]
[1755264910530,64.11153551,193.05,193.04,0.03]
[1755264910854,73.33149602,193.05,193.04,0.03]
[1755264911124,72.65149602,193.05,193.04,0.03]
[1755264911710,43.29995533,193.05,193.04,0.03]
[1755264911909,67.47149084,193.05,193.04,0.03]
[1755264912117,72.65149602,193.05,193.04,0.03]
[1755264912924,67.47149084,193.05,193.04,0.03]
[1755264913228,72.65149602,193.05,193.04,0.03]
[1755264914228,43.29995533,193.05,193.04,0.03]
[1755264914433,39.8,193.05,193.04,24.89153551]
[1755264914634,39.8,193.05,193.02,0.03]
[1755264914838,39.8,193.05,193.03,24.17153551]
[1755264915312,3.37199278,193.04,193.02,0.03]
[1755264915516,43.15199278,193.03,193.02,0.03]
[1755264915722,67.98352829,193.03,193.02,0.03]
[1755264915919,3.37199278,193.03,193.02,24.20153551]
[1755264916120,39.8,193.03,193.02,0.03]
[1755264916629,43.17308262,193.03,193.02,0.03]
[1755264917139,68.00461813,193.03,193.02,0.03]
[1755264917632,43.17308262,193.03,193.02,0.03]
[1755264917933,48.3536245,193.03,193.02,0.03]
[1755264918115,73.18516001,193.03,193.02,0.03]
[1755264918307,88.29137558,193.03,193.02,0.03]
[1755264918514,15.10621557,193.02,193.0,0.03]
[1755264918725,41.10621557,192.99,192.98,0.03]
[1755264919022,15.10621557,192.98,192.86,2.70547266]
[1755264919229,4.22273654,192.92,192.86,2.70547266]
[1755264919408,15.10621557,192.89,192.81,5.69642731]
[1755264919615,43.23308262,192.88,192.84,24.37153551]
[1755264919930,39.86,192.87,192.86,24.17153551]
[1755264920136,39.86,192.87,192.85,24.17153551]
[1755264920333,39.86,192.87,192.84,0.2]
[1755264920815,28.21225849,192.86,192.84,0.2]
[1755264921008,43.26077475,192.85,192.84,0.2]
[1755264921209,39.88,192.85,192.84,0.2]
[1755264921419,43.26053619,192.85,192.84,0.2]
[1755264921716,39.88,192.85,192.84,24.37153551]
[1755264921921,39.92,192.87,192.84,0.2]
[1755264922136,24.17153551,192.85,192.84,0.2]
[1755264922450,27.55132131,192.85,192.84,0.2]
[1755264922616,28.21132131,192.85,192.84,0.2]
[1755264923147,47.54027342,192.85,192.84,0.2]
[1755264923441,43.31753688,192.85,192.84,1e-08]
[1755264923645,47.06969485,192.85,192.84,1e-08]
[1755264923814,23.36905797,192.85,192.84,1e-08]
[1755264924016,92.68597071,192.85,192.84,1e-08]
[1755264924329,26.0,192.78,192.7,24.17153551]
[1755264924529,26.0,192.78,192.64,0.71]
[1755264924530,59.12600137,192.77,192.64,0.71]
[1755264924843,27.55132131,192.76,192.7,24.17153551]
[1755264925019,43.3797858,192.75,192.73,24.17153551]
[1755264925342,43.3749916,192.74,192.69,24.68153551]
[1755264925541,24.17153551,192.72,192.64,0.2]
[1755264925746,43.41474341,192.71,192.64,0.2]
[1755264925939,18.48095898,192.7,192.64,0.2]
[1755264926138,48.62442632,192.69,192.64,0.2]
[1755264926336,3.37474341,192.68,192.64,0.2]
[1755264926517,64.41153551,192.68,192.64,0.2]
[1755264926713,5.84914607,192.71,192.64,0.2]
[1755264926926,26.0,192.72,192.67,24.17153551]
[1755264927146,64.59153551,192.71,192.64,0.2]
[1755264927350,26.0,192.68,192.64,0.2]
[1755264927554,26.0,192.68,192.39,46.34840678]
[1755264927555,41.10621557,192.65,192.46,0.51958848]
[1755264927755,41.10621557,192.65,192.53,5.191292]
[1755264927756,26.0,192.6,192.53,5.191292]
[1755264927919,26.0,192.6,192.45,5.19615484]
[1755264927920,46.67241383,192.59,192.51,2.70832446]
[1755264928122,26.0,192.6,192.51,8.59281793]
[1755264928123,15.10621557,192.6,192.51,8.59281793]
[1755264928320,8.38556489,192.67,192.6,0.03]
[1755264928520,83.08621557,192.66,192.6,0.03]
[1755264928925,26.0,192.66,192.6,0.03]
[1755264929123,41.98,192.65,192.6,0.03]
[1755264929353,26.0,192.62,192.6,0.03]
[1755264929645,42.06,192.61,192.6,0.03]
[1755264929841,26.0,192.58,192.5,15.10621557]
[1755264930038,42.44,192.57,192.47,5.8856149]
[1755264930239,41.10621557,192.62,192.5,26.0]
[1755264930446,43.26,192.61,192.51,0.69]
[1755264930633,7.80837862,192.66,192.51,26.69]
[1755264930634,15.10621557,192.63,192.51,26.69]
[1755264930823,7.80837862,192.66,192.56,26.0]
[1755264931021,7.80837862,192.66,192.57,26.69]
[1755264931229,7.80837862,192.66,192.61,24.17153551]
[1755264931432,7.80837862,192.66,192.62,0.69]
[1755264931622,7.80837862,192.66,192.63,0.69]
[1755264931818,7.80837862,192.66,192.64,0.69]
[1755264932048,31.97991413,192.66,192.5,10.0]
[1755264932356,31.97991413,192.66,192.51,0.69]
[1755264932357,26.0,192.62,192.51,0.69]
[1755264932528,26.0,192.58,192.48,20.7987036]
[1755264932849,43.82,192.57,192.54,24.20153551]
[1755264933053,6.07579994,192.65,192.56,24.17153551]
[1755264933258,49.91579994,192.65,192.57,0.69]
[1755264933427,6.07579994,192.65,192.64,24.17153551]
[1755264933753,43.92,192.74,192.64,39.29775108]
[1755264933945,0.66,192.73,192.6,0.02]
[1755264934249,24.17153551,192.68,192.59,5.19237758]
[1755264934555,24.17153551,192.6,192.54,0.03]
[1755264934851,26.0,192.57,192.54,0.03]
[1755264935147,24.17153551,192.55,192.54,0.03]
[1755264935358,26.66,192.56,192.54,0.03]
[1755264935656,68.79153551,192.55,192.54,0.03]
[1755264935824,0.66,192.59,192.54,0.03]
[1755264936027,68.87153551,192.58,192.54,0.03]
[1755264936349,24.17153551,192.55,192.54,0.03]
[1755264936553,15.10621557,192.54,192.44,15.106216]
[1755264936727,24.17153551,192.46,192.38,5.19804553]
[1755264936925,68.23153551,192.45,192.39,2.70920427]
[1755264937123,0.66,192.47,192.4,24.17153551]
[1755264937323,44.04,192.47,192.4,26.0]
[1755264937635,44.04,192.5,192.46,24.17153551]
[1755264937843,44.04,192.5,192.49,24.17153551]
[1755264938040,4.05000019,192.52,192.49,24.17153551]
[1755264938223,4.05000019,192.52,192.51,24.17153551]
[1755264938426,4.00000019,192.52,192.51,39.32775108]
[1755264938729,44.02,192.59,192.52,15.10621557]
[1755264938931,68.19153551,192.59,192.5,41.10621557]
[1755264939130,24.17153551,192.55,192.49,5.19502903]
[1755264939322,24.17153551,192.53,192.46,50.17153551]
[1755264939531,0.66,192.52,192.44,24.17153551]
[1755264939738,24.17153551,192.51,192.43,5.19642616]
[1755264939930,24.17153551,192.49,192.41,5.19699783]
[1755264940125,24.17153551,192.48,192.42,24.17153551]
[1755264940541,0.66,192.48,192.41,5.19699783]
[1755264940744,0.66,192.48,192.42,24.17153551]
[1755264940935,43.96,192.49,192.42,15.10621557]
[1755264941358,44.62,192.49,192.41,31.19699783]
[1755264941546,44.62,192.49,192.37,15.10621557]
[1755264941547,24.17153551,192.46,192.38,5.19804553]
[1755264941746,0.66,192.45,192.36,2.70996029]
[1755264941961,29.36873251,192.42,192.35,24.17153551]
[1755264942259,24.83153551,192.41,192.3,5.200208]
[1755264942458,24.83153551,192.41,192.35,24.17153551]
[1755264942960,0.66,192.41,192.36,24.17153551]
[1755264943257,0.66,192.4,192.3,18.20072802]
[1755264943445,44.0,192.39,192.3,18.20072802]
[1755264943646,44.0,192.39,192.36,24.17153551]
[1755264943850,44.66,192.39,192.38,0.03]
[1755264944059,0.66,192.43,192.38,24.20153551]
[1755264944366,0.66,192.43,192.4,24.17153551]
[1755264944534,43.92,192.44,192.42,24.17153551]
[1755264944733,0.66,192.46,192.43,24.17153551]
[1755264944967,0.66,192.51,192.45,24.17153551]
[1755264945140,68.11153551,192.5,192.44,24.17153551]
[1755264945461,24.17153551,192.46,192.4,24.17153551]
[1755264945663,24.85153551,192.45,192.38,0.03]
[1755264945836,43.92,192.44,192.38,0.03]
[1755264946036,44.6,192.44,192.38,0.03]
[1755264946234,44.6,192.44,192.41,24.17153551]
[1755264946448,0.68,192.43,192.41,24.17153551]
[1755264946656,43.92,192.44,192.42,24.17153551]
[1755264947265,24.85153551,192.43,192.38,0.03]
[1755264947635,0.68,192.42,192.38,24.20153551]
[1755264947943,0.68,192.41,192.4,24.17153551]
[1755264948144,0.68,192.41,192.38,0.03]
[1755264948345,0.68,192.4,192.38,0.03]
[1755264948528,43.98,192.39,192.38,0.03]
[1755264948733,44.66,192.39,192.38,24.20153551]
[1755264948932,43.98,192.39,192.38,24.20153551]
[1755264949136,44.66,192.39,192.38,24.20153551]
[1755264949366,44.66,192.39,192.38,0.03]
[1755264950242,44.66,192.39,192.38,24.20153551]
[1755264950464,43.84,192.4,192.38,0.03]
[1755264950871,0.68,192.39,192.38,0.03]
[1755264951240,0.68,192.43,192.38,0.03]
[1755264951442,43.82,192.42,192.41,24.17153551]
[1755264951644,43.82,192.42,192.38,0.03]
[1755264952145,24.17153551,192.53,192.42,5.19696497]
[1755264952344,0.68,192.54,192.45,26.0]
[1755264952567,0.68,192.54,192.51,24.17153551]
[1755264952745,43.82,192.53,192.51,24.17153551]
[1755264953061,43.82,192.53,192.52,24.17153551]
[1755264953578,37.42,192.62,192.52,24.17153551]
[1755264953579,0.68,192.58,192.52,24.17153551]
[1755264953874,43.8,192.58,192.57,24.17153551]
[1755264954041,43.8,192.58,192.57,29.36445237]
[1755264954568,0.06,192.61,192.57,42.34674452]
[1755264954767,0.06,192.61,192.6,24.17153551]
[1755264955142,1e-08,192.61,192.6,26.0]
[1755264955340,1e-08,192.61,192.57,5.19291686]
[1755264955646,1e-08,192.61,192.6,24.17153551]
[1755264956150,1e-08,192.61,192.56,31.19318653]
[1755264956350,0.68,192.6,192.56,26.0]
[1755264956650,1e-08,192.61,192.59,24.17153551]
[1755264956865,1e-08,192.61,192.6,24.17153551]
[1755264957276,1e-08,192.61,192.59,24.17153551]
[1755264957773,0.68,192.6,192.58,24.17153551]
[1755264957954,0.68,192.59,192.54,26.0]
[1755264958161,1e-08,192.61,192.54,26.0]
[1755264958366,5.1918746,192.61,192.58,24.17153551]
[1755264958670,0.68,192.6,192.55,24.17153551]
[1755264958853,24.85153551,192.6,192.54,24.17153551]
[1755264959048,24.85153551,192.59,192.48,5.19534497]
[1755264959246,44.17147067,192.61,192.52,24.17153551]
[1755264959247,26.68,192.58,192.52,24.17153551]
[1755264959472,44.3,192.57,192.53,24.17153551]
[1755264959671,0.68,192.56,192.53,24.17153551]
[1755264959881,43.62,192.57,192.53,24.17153551]
[1755264960076,0.68,192.55,192.53,24.17153551]
[1755264960379,0.68,192.6,192.54,24.17153551]
[1755264960589,43.56,192.59,192.57,24.17153551]
[1755264960762,43.56,192.59,192.56,24.17153551]
[1755264961073,0.68,192.58,192.57,24.17153551]
[1755264961255,43.56,192.59,192.57,24.17153551]
[1755264961458,43.56,192.59,192.58,24.17153551]
[1755264961673,44.24,192.59,192.58,24.17153551]
[1755264961871,43.56,192.59,192.58,24.17153551]
[1755264962384,44.24,192.59,192.56,24.17153551]
[1755264962557,43.56,192.59,192.58,24.17153551]
[1755264963460,44.24,192.59,192.51,5.19451531]
[1755264963663,0.68,192.58,192.48,5.19534497]
[1755264963881,0.68,192.58,192.53,24.17153551]
[1755264963882,131.9,192.57,192.53,24.17153551]
[1755264964179,0.68,192.56,192.54,24.17153551]
[1755264964397,131.9,192.57,192.55,24.17153551]
[1755264964562,131.9,192.57,192.49,26.0]
[1755264964563,43.5,192.56,192.53,5.19393901]
[1755264965084,43.5,192.56,192.55,24.17153551]
[1755264965468,43.5,192.56,192.52,24.17153551]
[1755264965469,44.18,192.56,192.52,24.17153551]
[1755264965666,0.68,192.55,192.52,24.17153551]
[1755264965901,43.5,192.56,192.51,24.17153551]
[1755264965902,0.68,192.54,192.51,24.17153551]
[1755264966087,0.68,192.53,192.49,24.17153551]
[1755264966386,44.1,192.52,192.49,24.17153551]
[1755264966574,44.1,192.52,192.43,5.1966949]
[1755264966575,43.42,192.52,192.51,24.17153551]
[1755264966882,43.42,192.52,192.43,18.18843215]
[1755264967093,44.1,192.52,192.5,24.17153551]
[1755264967270,44.1,192.52,192.51,24.17153551]
[1755264967585,43.42,192.52,192.51,24.17153551]
[1755264968157,44.1,192.52,192.51,24.17153551]
[1755264968558,49.294284,192.52,192.49,24.17153551]
[1755264968763,0.68,192.51,192.41,5.19723507]
[1755264968960,0.68,192.51,192.42,24.17153551]
[1755264968961,15.10621557,192.5,192.42,24.17153551]
[1755264969181,15.10621557,192.5,192.39,5.19777535]
[1755264969182,28.21820136,192.49,192.43,24.17153551]
[1755264969486,75.32478982,192.48,192.38,5.22802268]
[1755264969787,7.79325431,192.47,192.42,24.17153551]
[1755264969962,4.04666585,192.46,192.38,5.22802268]
[1755264970162,3.36666585,192.45,192.42,24.17153551]
[1755264970495,43.34,192.44,192.42,24.17153551]
[1755264970794,43.32,192.45,192.43,24.17153551]
[1755264970971,43.32,192.45,192.44,24.17153551]
[1755264971856,43.32,192.45,192.38,5.22802268]
[1755264972085,44.0,192.45,192.38,31.22802268]
[1755264972261,4.05514754,192.44,192.4,24.17153551]
[1755264972583,4.05514754,192.43,192.42,24.17153551]
[1755264972785,3.37518522,192.44,192.42,24.17153551]
[1755264972962,43.32,192.45,192.43,24.17153551]
[1755264973153,43.32,192.45,192.44,24.17153551]
[1755264973357,43.32,192.45,192.38,18.22309561]
[1755264973358,44.0,192.45,192.38,18.22309561]
[1755264973571,44.0,192.45,192.38,31.22798178]
[1755264973784,3.37627807,192.44,192.42,24.17153551]
[1755264973989,4.0564199,192.43,192.38,0.03]
[1755264974282,0.68,192.43,192.4,24.17153551]
[1755264974462,0.68,192.42,192.38,0.03]
[1755264974682,43.26,192.41,192.38,0.03]
[1755264974872,15.10621557,192.4,192.38,0.03]
[1755264975184,3.37660794,192.39,192.38,0.03]
[1755264975385,4.05660794,192.39,192.38,0.03]
[1755264975582,0.68,192.39,192.38,24.20153551]
[1755264975772,43.24,192.39,192.38,0.03]
[1755264975971,43.24,192.39,192.38,24.20153551]
[1755264976195,43.24,192.39,192.38,0.03]
[1755264976395,64.22399092,192.39,192.38,0.03]
[1755264976600,59.02621557,192.39,192.38,0.03]
[1755264976901,59.02621557,192.39,192.38,24.20153551]
[1755264976902,43.24,192.39,192.38,24.20153551]
[1755264977082,43.2,192.39,192.38,24.20153551]
[1755264977405,43.2,192.4,192.38,0.03]
[1755264977910,0.68,192.39,192.38,0.03]
[1755264978708,43.2,192.4,192.38,24.20153551]
[1755264978901,43.2,192.4,192.38,0.03]
[1755264979209,0.68,192.39,192.38,0.03]
[1755264979703,43.2,192.4,192.38,24.20153551]
[1755264979876,43.2,192.4,192.39,24.17153551]
[1755264980206,43.3,192.4,192.39,24.17153551]
[1755264980383,0.68,192.46,192.39,29.36931086]
[1755264980591,43.28,192.46,192.45,24.17153551]
[1755264980896,0.68,192.49,192.45,24.17153551]
[1755264981100,43.96,192.48,192.42,26.0]
[1755264981400,43.28,192.48,192.47,24.17153551]
[1755264982414,4.22228637,192.6,192.47,24.17153551]
[1755264982415,0.68,192.58,192.48,5.19534497]
[1755264982709,1e-08,192.61,192.57,24.17153551]
[1755264982885,1e-08,192.61,192.51,26.0]
[1755264982886,1e-08,192.61,192.6,24.17153551]
[1755264983091,43.26000001,192.61,192.51,26.0]
[1755264983602,43.26000001,192.61,192.6,24.17153551]
[1755264983921,43.26000001,192.61,192.55,24.17153551]
[1755264983922,15.10621557,192.6,192.55,24.17153551]
[1755264984123,15.10621557,192.6,192.49,26.0]
[1755264984124,43.26000001,192.61,192.59,24.17153551]
[1755264984425,43.26000001,192.61,192.49,26.0]
[1755264984426,43.26000001,192.61,192.6,24.17153551]
[1755264984613,43.20000001,192.61,192.6,24.17153551]
[1755264984918,43.20000001,192.61,192.54,5.19372597]
[1755264985110,43.88000001,192.61,192.59,24.17153551]
[1755264985318,0.68,192.6,192.59,24.17153551]
[1755264985511,43.20000001,192.61,192.59,24.17153551]
[1755264985820,43.88000001,192.61,192.59,24.17153551]
[1755264986125,1e-08,192.61,192.6,24.17153551]
[1755264986522,1e-08,192.61,192.6,29.3636435]
[1755264986904,1e-08,192.61,192.6,24.17153551]
[1755264987327,1e-08,192.61,192.6,50.17153551]
[1755264987627,0.06,192.63,192.62,26.0]
[1755264987825,0.06,192.63,192.62,50.17153551]
[1755264988330,0.06,192.63,192.61,24.17153551]
[1755264988626,0.06,192.63,192.62,24.17153551]
[1755264988838,0.06,192.63,192.58,26.0]
[1755264989129,0.68,192.62,192.59,24.17153551]
[1755264989297,0.68,192.61,192.54,5.19372597]
[1755264989491,0.68,192.61,192.5,56.02690903]
[1755264989492,0.68,192.61,192.52,5.19404626]
[1755264989824,24.17153551,192.55,192.49,24.17153551]
[1755264990027,24.17153551,192.52,192.41,5.19723507]
[1755264990205,0.68,192.51,192.41,5.19723507]
[1755264990405,0.68,192.51,192.5,24.17153551]
[1755264990406,43.12,192.51,192.5,24.17153551]
[1755264990626,0.68,192.54,192.5,24.17153551]
[1755264990837,41.10621557,192.56,192.52,24.17153551]
[1755264990838,43.12,192.53,192.52,24.17153551]
[1755264991004,43.8,192.53,192.44,5.19642485]
[1755264991203,43.8,192.53,192.51,24.17153551]
[1755264991401,43.12,192.53,192.52,24.17153551]
[1755264991600,9.29503317,192.66,192.52,24.17153551]
[1755264991601,43.12,192.59,192.52,24.17153551]
[1755264991907,43.18,192.65,192.58,24.17153551]
[1755264992229,0.06,192.65,192.62,24.17153551]
[1755264992395,0.06,192.65,192.62,29.3631044]
[1755264992825,0.06,192.65,192.62,24.17153551]
[1755264993834,0.74,192.63,192.6,24.17153551]
[1755264994002,0.74,192.63,192.61,24.17153551]
[1755264994410,0.06,192.63,192.62,24.17153551]
[1755264994835,0.06,192.63,192.62,50.17153551]
[1755264995206,0.06,192.63,192.62,24.17153551]
[1755264995622,0.06,192.63,192.61,24.17153551]
[1755264995819,0.74,192.63,192.6,24.17153551]
[1755264996025,0.74,192.63,192.61,24.17153551]
[1755264996337,0.74,192.63,192.62,24.17153551]
[1755264996338,0.06,192.63,192.62,24.17153551]
[1755264996535,0.06,192.63,192.57,26.0]
[1755264996737,0.06,192.63,192.62,24.17153551]
[1755264998315,0.06,192.63,192.6,26.0]
[1755264998516,0.06,192.63,192.62,29.3631044]
[1755264999144,0.06,192.63,192.62,5.19156889]
[1755264999315,0.74,192.63,192.61,24.17153551]
[1755264999517,0.68,192.62,192.59,24.17153551]
[1755264999712,0.68,192.61,192.59,24.17153551]
[1755265000030,0.68,192.6,192.59,24.17153551]
[1755265000237,0.06,192.63,192.59,24.17153551]
[1755265000431,0.06,192.63,192.62,24.17153551]
[1755265000747,0.06,192.63,192.62,55.3631044]
[1755265001040,1e-08,192.65,192.63,41.10621557]
[1755265001244,0.06,192.67,192.62,29.3631044]
[1755265001245,0.06,192.67,192.66,26.0]
[1755265001446,0.06,192.67,192.66,24.17153551]
[1755265001741,0.74,192.67,192.65,24.17153551]
[1755265001909,0.06,192.67,192.62,5.19155104]
[1755265002241,0.06,192.67,192.66,24.17153551]
[1755265002919,0.06,192.67,192.66,29.36202653]
[1755265003328,0.06,192.67,192.66,24.17153551]
[1755265003524,0.74,192.67,192.66,24.17153551]
[1755265005450,0.74,192.67,192.65,24.17153551]
[1755265005451,5.93022162,192.67,192.65,24.17153551]
[1755265005628,0.7,192.66,192.61,26.0]
[1755265005951,0.7,192.66,192.65,24.17153551]
[1755265006145,0.7,192.66,192.61,26.0]
[1755265006317,0.06,192.67,192.65,24.17153551]
[1755265006520,0.06,192.67,192.66,24.17153551]
[1755265006933,0.06,192.67,192.62,5.19149438]
[1755265007252,0.76,192.67,192.64,24.17153551]
[1755265007419,0.76,192.67,192.62,24.17153551]
[1755265007749,0.7,192.66,192.61,24.17153551]
[1755265007922,42.72,192.65,192.61,24.17153551]
[1755265008124,0.7,192.64,192.62,24.17153551]
[1755265008327,42.72,192.65,192.55,5.19345624]
[1755265008328,0.7,192.63,192.59,24.17153551]
[1755265008551,0.7,192.62,192.58,24.17153551]
[1755265008852,0.7,192.62,192.6,24.17153551]
[1755265009038,42.68,192.63,192.61,24.17153551]
[1755265009233,42.68,192.63,192.62,24.17153551]
[1755265010320,43.38,192.63,192.62,24.17153551]
[1755265010653,43.38,192.63,192.6,24.17153551]
[1755265010855,0.7,192.62,192.6,24.17153551]
[1755265011027,0.7,192.61,192.59,24.17153551]
[1755265011950,0.7,192.6,192.54,26.03]
[1755265012151,0.7,192.6,192.56,24.17153551]
[1755265012342,42.68,192.63,192.59,24.17153551]
[1755265012554,42.68,192.63,192.61,24.17153551]
[1755265012846,43.38,192.63,192.61,24.17153551]
[1755265013038,0.7,192.62,192.6,24.17153551]
[1755265013220,0.7,192.62,192.59,24.17153551]
[1755265013420,0.7,192.61,192.58,24.17153551]
[1755265013628,47.87139758,192.63,192.54,0.03]
[1755265013629,0.7,192.6,192.56,24.17153551]
[1755265013828,0.7,192.59,192.57,24.17153551]
[1755265014038,0.7,192.59,192.54,0.03]
[1755265014249,0.7,192.59,192.57,24.17153551]
[1755265014547,72.04293309,192.63,192.57,24.17153551]
[1755265014744,0.7,192.59,192.56,24.17153551]
[1755265015133,0.7,192.59,192.57,24.17153551]
[1755265015630,0.7,192.59,192.54,0.03]
[1755265015631,43.16,192.58,192.54,24.20153551]
[1755265015984,0.7,192.57,192.54,0.03]
[1755265016146,0.7,192.57,192.54,24.20153551]
[1755265016361,42.46,192.58,192.56,24.17153551]
[1755265016539,0.7,192.57,192.55,24.17153551]
[1755265017027,5.89313805,192.57,192.55,24.17153551]
[1755265017356,42.46,192.58,192.56,24.17153551]
[1755265017545,42.46,192.58,192.57,24.17153551]
[1755265017849,24.17153551,192.65,192.57,24.17153551]
[1755265018053,13.03576215,192.67,192.54,5.22356727]
[1755265018054,43.04,192.64,192.61,24.17153551]
[1755265018349,0.7,192.63,192.61,24.17153551]
[1755265018539,0.7,192.62,192.54,18.20788221]
[1755265018741,0.7,192.62,192.54,5.22356727]
[1755265018938,0.7,192.62,192.6,24.17153551]
[1755265019136,0.7,192.61,192.54,0.03]
[1755265019336,0.7,192.61,192.59,24.17153551]
[1755265019849,47.53103951,192.64,192.6,24.17153551]
[1755265020039,0.7,192.61,192.6,24.17153551]
[1755265020238,131.9,192.63,192.58,26.0]
[1755265020552,131.9,192.63,192.62,24.17153551]
[1755265020928,42.22,192.66,192.62,24.17153551]
[1755265021135,0.06,192.67,192.6,26.0]
[1755265021342,0.76,192.67,192.61,5.19183842]
[1755265021545,0.76,192.67,192.65,24.17153551]
[1755265021726,0.06,192.67,192.66,24.17153551]
[1755265022130,0.76,192.67,192.63,24.17153551]
[1755265022331,42.2,192.66,192.6,31.19205107]
[1755265022550,0.06,192.67,192.65,24.17153551]
[1755265022859,0.06,192.67,192.66,24.17153551]
[1755265023030,1e-08,192.67,192.66,39.27775108]
[1755265023232,0.06,192.69,192.68,46.29616782]
[1755265023478,0.06,192.69,192.68,55.36148776]
[1755265023760,0.06,192.69,192.68,24.17153551]
[1755265024072,0.06,192.69,192.68,29.36148776]
[1755265024354,0.06,192.71,192.7,65.27775108]
[1755265024526,42.1,192.8,192.74,26.0]
[1755265024725,37.5,192.87,192.79,24.17153551]
[1755265024929,37.5,192.87,192.71,15.10621557]
[1755265024930,42.08,192.83,192.8,24.17153551]
[1755265025346,42.08,192.83,192.8,29.3582575]
[1755265025539,0.7,192.85,192.8,24.17153551]
[1755265025739,3.3932012,192.86,192.8,24.17153551]
[1755265026037,0.06,192.75,192.74,26.0]
[1755265026241,0.06,192.75,192.74,50.17153551]
[1755265027655,0.06,192.75,192.74,55.35987212]
[1755265027961,0.06,192.75,192.74,50.17153551]
[1755265028341,0.06,192.75,192.68,41.98]
[1755265028342,0.76,192.75,192.73,24.17153551]
[1755265028536,0.06,192.75,192.73,24.17153551]
[1755265028746,0.7,192.74,192.73,24.17153551]
[1755265029261,0.06,192.75,192.73,24.17153551]
[1755265029458,0.06,192.75,192.74,24.17153551]
[1755265029846,0.76,192.75,192.74,24.17153551]
[1755265030159,0.06,192.75,192.74,24.17153551]
[1755265032238,0.76,192.75,192.69,26.0]
[1755265032457,0.06,192.75,192.74,24.17153551]
[1755265032647,0.06,192.75,192.72,24.17153551]
[1755265032951,24.17153551,192.73,192.67,24.17153551]
[1755265033265,0.7,192.72,192.71,24.17153551]